Cogmind - Beta 13 @@@ ROGUE MODE // 2024.04.28 @ 14:51:28 Player: e.v.o Result: Self-destructed Performance ------------- Evolutions (1) 500 Regions Visited (2) 400 Robots Destroyed (24) 120 Value Destroyed (532) 532 Prototype IDs (0) 0 Alien Tech Used (0) 0 Bonus (0) 0 TOTAL SCORE: 1552 Bonus ------- None Cogmind --------- Core Integrity 305/400 Matter 300/300 Energy 125/125 System Corruption 0% Temperature Cool (0) Movement Walking (190) Ox1 Location -9/Materials Parts ------- > --- POWER (1) -------- Light Ion Engine > --- PROPULSION (3) --- Aluminum Leg Aluminum Leg > --- UTILITY (2) ------ Medium Storage Unit > --- WEAPON (3) ------- Beam Cannon Maul Maul > --- INVENTORY (10) --- Signal Interpreter Heavy Assault Rifle Maul Peak State ------------ > --- POWER ------------ Ion Engine > --- PROPULSION ------- Aluminum Leg Aluminum Leg Aluminum Leg > --- UTILITY ---------- Improved Heat Sink Medium Storage Unit > --- WEAPON ----------- EM Pulse Gun Light Cannon Grenade Launcher > --- INVENTORY -------- Ion Engine Aluminum Leg Aluminum Leg Signal Interpreter Maul Maul Maul [Rating: 12] Favorites ----------- Power Ion Engine Engine Ion Engine Power Core Light Nuclear Core Propulsion Aluminum Leg Treads Light Treads Leg Aluminum Leg Utility Medium Storage Unit Device Improved Heat Sink Storage Medium Storage Unit Weapon Light Assault Rifle Energy Gun EM Pulse Gun Energy Cannon Beam Cannon Ballistic Gun Light Assault Rifle Ballistic Cannon Light Cannon Launcher Grenade Launcher Impact Weapon Maul Build | -11 -10 -9 ------- Run | Yrd Mat Mat Slots Evolved 2 | . . 2 Power . | . . . Propulsion 1 | . . 1 Utility . | . . . Weapon 1 | . . 1 Parts Attached 29 | 6 11 12 Power 5 | 1 2 2 Engine 4 | 1 1 2 Core 1 | . 1 . Reactor . | . . . Propulsion 8 | 2 3 3 Treads 2 | 2 . . Leg 6 | . 3 3 Wheel . | . . . Hover . | . . . Flight . | . . . Utility 5 | 1 3 1 Device 2 | . 1 1 Storage 3 | 1 2 . Processor . | . . . Hackware . | . . . Protection . | . . . Artifact . | . . . Weapon 11 | 2 3 6 Energy Gun 3 | . 1 2 Energy Cannon 1 | . . 1 Ballistic Gun 3 | 2 . 1 Ballistic Cannon 1 | . 1 . Launcher 1 | . 1 . Special Weapon . | . . . Impact Weapon 2 | . . 2 Slashing Weapon . | . . . Piercing Weapon . | . . . Special Melee Weapon . | . . . Unidentified Prototypes . | . . . Parts Lost 5 | . . 5 Power . | . . . Propulsion 1 | . . 1 Utility 2 | . . 2 Weapon 2 | . . 2 Highest Loss Streak 2 | . . 2 To Critical Strikes . | . . . Average Slot Usage (%) 96 | . 93 98 Engine 10 | . 10 11 Core 1 | . 3 . Treads 5 | . 12 . Leg 25 | . 15 33 Device 10 | . 11 9 Storage 10 | . 10 11 Energy Gun 4 | . 1 6 Energy Cannon 1 | . . 3 Ballistic Gun 8 | . 19 . Ballistic Cannon 4 | . 2 5 Launcher 5 | . 4 5 Impact Weapon 6 | . . 11 Naked Turns . | . . . Heaviest Build 28 | 12 28 25 Greatest Support 40 | 40 40 30 Greatest Overweight (x) 1 | . 1 . Average Overweight (x) . | . . . Largest Inventory Capacity 15 | 8 15 10 Average Capacity 10 | 6 11 10 Most Carried 8 | 4 8 7 Average Carried 4 | 2 5 4 Final Capacity 10 | 8 10 10 Final Carried 6 | 4 6 3 Class Distribution -------------------- 76% | Mutant 23% | Gunner Dominant Class ---------------- Mutant | -10/Materials Mutant | -9/Materials Resources | -11 -10 -9 ----------- Run | Yrd Mat Mat Matter Collected 661 | 225 183 253 Remotely . | . . . Salvage Created 678 | . 221 457 Parts 57 | . 14 43 Haulers Intercepted 2 | . . 2 Recyclers Shooed 3 | . . 3 Parts Field Recycled . | . . . Retrieved Matter . | . . . Parts Self-Destructed . | . . . Prevented . | . . . Kills | -11 -10 -9 ------- Run | Yrd Mat Mat Combat Hostiles Destroyed 15 | . 5 10 Melee 1 | . . 1 Guns 7 | . 5 2 Cannons 1 | . . 1 AOE 5 | . . 5 Classes Destroyed 7 | . 1 6 Worker 3 | . . 3 Builder 3 | . . 3 Hauler 2 | . . 2 Watcher 1 | . . 1 Swarmer 4 | . . 4 Grunt 7 | . 5 2 Sentry 4 | . . 4 Best Kill Streak 13 | . 2 13 Combat Bots Only 6 | . 2 6 Max Kills in Single Turn 3 | . 1 3 Gunslinging . | . . . Exploded 3 | . . 3 Melee 1 | . . 1 Uniques/NPCs Destroyed . | . . . Combat | -11 -10 -9 -------- Run | Yrd Mat Mat Hostile Shots Fired 178 | . 67 111 Missed 55 | . 22 33 Damage Taken 1393 | . 501 892 Core 174 | . 79 95 Absorbed by Shields . | . . . Core Remaining (%) 84 | 100 68 . Volleys Fired 42 | . 29 13 Largest 3 | . 2 3 Hottest 105 | . 40 105 Shots Fired 91 | . 58 33 Gun 70 | . 58 12 Cannon 13 | . . 13 Launcher 8 | . . 8 Special . | . . . Kinetic 70 | . 58 12 Thermal 1 | . . 1 Explosive 8 | . . 8 Electromagnetic 12 | . . 12 Robot Hit Streak 7 | . 6 7 Robot Miss Streak 3 | . 3 3 Penetration Max . | . . . Secondary Targets . | . . . Shots Hit Robots 62 | . 36 26 Core Hits 48 | . 17 31 Critical Kills 2 | . . 2 Critical Parts Destroyed 1 | . 1 . Critical Strikes 3 | . 1 2 Destroy 1 | . 1 . Smash 2 | . . 2 Melee Attacks 15 | . . 15 Impact 15 | . . 15 Slashing . | . . . Piercing . | . . . Sneak Attacks 3 | . . 3 Combat Hostiles . | . . . Follow-up Attacks 2 | . . 2 Damage Inflicted 1857 | . 302 1555 Guns 425 | . 302 123 Cannons 127 | . . 127 Explosions 789 | . . 789 Melee 516 | . . 516 Ramming . | . . . Kinetic 429 | . 302 127 Thermal . | . . . Explosive 789 | . . 789 Electromagnetic 123 | . . 123 Impact 516 | . . 516 Slashing . | . . . Piercing . | . . . Highest Corruption . | . . . Average Corruption . | . . . Corruption Purged . | . . . Corruption Blocked . | . . . Overload Shots . | . . . Overflow Damage 152 | . . 152 Projectiles . | . . . Explosions . | . . . Melee 152 | . . 152 Knockbacks 5 | . . 5 Impact 3 | . . 3 Kinetic 2 | . . 2 Secondary . | . . . Self-Inflicted Damage 58 | . . 58 Shots 2 | . . 2 Rammed . | . . . Targets Rammed . | . . . Kicked . | . . . Crushed . | . . . Highest Temperature 293 | . 9 293 Average Temperature 115 | . 9 122 Received Heat Transfer 459 | . 288 171 Siege Activations . | . . . Robots Corrupted . | . . . Combat Hostiles . | . . . Parts Fried 3 | . . 3 Impact Corruptions 6 | . . 6 Robots Melted . | . . . Combat Hostiles . | . . . Parts Melted . | . . . Heat Transferred . | . . . Parts Sabotaged . | . . . Parts Stolen . | . . . Parts Stripped . | . . . Power Chain Reactions . | . . . Alert | -11 -10 -9 ------- Run | Yrd Mat Mat Peak Influence 441 | . 180 441 Initial . | . . . Average 170 | . 89 260 Maximum Alert Level 2 | . . 2 Low Security (%) 61 | 100 100 23 Level 1 29 | . . 57 Level 2 9 | . . 18 Level 3 . | . . . Level 4 . | . . . Level 5 . | . . . High Security . | . . . Max Security . | . . . Squads Dispatched 2 | . 2 . Investigation 2 | . 2 . Extermination . | . . . Reinforcement . | . . . Assault . | . . . Garrison . | . . . Intercept . | . . . Searches Triggered . | . . . Construction Impeded . | . . . Haulers Reinforced . | . . . Active Scanning Responses . | . . . Cargo Convoy Interrupts . | . . . Stealth | -11 -10 -9 --------- Run | Yrd Mat Mat Distress Signals . | . . . Communications Jammed . | . . . Distress Signals . | . . . Times Spotted 35 | . 10 25 Peak Tracking Total 10 | . 3 10 Tactical Retreats 5 | . 3 2 Traps | -11 -10 -9 ------- Run | Yrd Mat Mat Traps Triggered . | . . . Indirectly . | . . . Trap Hack Attempts . | . . . Triggered . | . . . Disarmed . | . . . Reprogrammed . | . . . Reused . | . . . Traps Extracted . | . . . Installed . | . . . Triggered . | . . . Machines | -11 -10 -9 ---------- Run | Yrd Mat Mat Machines Disabled 1 | . . 1 Max in Single Turn 1 | . . 1 Machines Repaired . | . . . Machines Dismantled . | . . . Machines Sabotaged . | . . . Overloaded Fab Kills . | . . . Hacking | -11 -10 -9 --------- Run | Yrd Mat Mat Machines Accessed 5 | . 2 3 Terminals 4 | . 2 2 Fabricators . | . . . Repair Stations 1 | . . 1 Recycling Units . | . . . Scanalyzers . | . . . Garrison Access . | . . . Total Hacks 10 | . 4 6 Successful 3 | . 1 2 Failed 7 | . 3 4 Catastrophic 3 | . 2 1 Database Lockouts . | . . . Manual . | . . . Terminals 7 | . 4 3 Fabricators . | . . . Repair Stations 3 | . . 3 Recycling Units . | . . . Scanalyzers . | . . . Garrison Access . | . . . Terminal Hacks 2 | . 1 1 Locate Traps 1 | . 1 . Investigation Status 1 | . . 1 Fabricator Hacks . | . . . Repair Station Hacks 1 | . . 1 Scan Component 1 | . . 1 Recycling Unit Hacks . | . . . Scanalyzer . | . . . Garrison Access Hacks . | . . . Unauthorized Hacks . | . . . Terminals . | . . . Fabricators . | . . . Repair Stations . | . . . Recycling Units . | . . . Scanalyzers . | . . . Garrison Access . | . . . Data Cores Recovered . | . . . Used . | . . . Hacking Detections 5 | . 2 3 Full Trace Events 3 | . 2 1 Feedback Events . | . . . Feedback Blocked . | . . . Robot Schematics Acquired . | . . . Robots Built . | . . . Authchips . | . . . Time . | . . . Total Robot Build Rating . | . . . Part Schematics Acquired . | . . . Parts Built . | . . . Authchips . | . . . Time . | . . . Total Part Build Rating . | . . . Parts Repaired . | . . . Time . | . . . Parts Recycled . | . . . Recycled Matter . | . . . Retrieved Matter . | . . . Retrieved Components . | . . . Parts Scanalyzed . | . . . Part Schematics Acquired . | . . . Parts Damaged . | . . . Bothacking | -11 -10 -9 ------------ Run | Yrd Mat Mat Used RIF Installer . | . . . Robots Hacked . | . . . Non-combat . | . . . Combat . | . . . Robot Hacks Applied . | . . . Relay Couplers Released . | . . . Fabnet Peak Effective % . | . . . Robots Rewired . | . . . Allies Hacked . | . . . Hacks Repelled . | . . . Allies | -11 -10 -9 -------- Run | Yrd Mat Mat Total Allies . | . . . Largest Group . | . . . Highest-Rated Group . | . . . Highest-Rated Ally . | . . . Total Orders . | . . . Ally Attacks . | . . . Total Damage . | . . . Kills . | . . . Allies Corrupted . | . . . Allies Melted . | . . . Intel | -11 -10 -9 ------- Run | Yrd Mat Mat Robot Analysis Total . | . . . Derelict Logs Recovered . | . . . Drone Launches . | . . . Drone Recoveries . | . . . Exploration | -11 -10 -9 ------------- Run | Yrd Mat Mat Turns Passed 985 | 69 414 502 Spaces Moved 561 | 37 200 324 Core 2 | 2 . . Treads 108 | 35 73 . Legs 451 | . 127 324 Wheels . | . . . Hover . | . . . Flight . | . . . Fastest Speed 50 | 50 120 120 Average Speed 134 | 154 153 120 Slowest Speed 190 | 160 190 120 Overloaded Moves . | . . . Propulsion Burnouts . | . . . Robots Hopped . | . . . Cave-ins Triggered . | . . . Exploration Rate (%) 25 | 4 34 38 Regions Visited 2 Branch Regions . Pre-discovered Areas . | . . . Known Exits Taken . | . . . Unknown Exits Taken 2 | 1 1 . Scrap Searched . | . . . Spaces Dug 1 | . . 1 Terrain Destroyed 37 | . . 37 Melee 1 | . . 1 Projectile . | . . . AOE 36 | . . 36 Terrain Rammed . | . . . Walls Destroyed . | . . . Machines Disabled . | . . . Actions | -11 -10 -9 --------- Run | Yrd Mat Mat Total 690 | 46 260 384 Wait 11 | . 1 10 Move 559 | 36 199 324 Hop . | . . . Pick Up 22 | 4 11 7 Fast Attach 9 | 6 2 1 Attach 6 | . 1 5 Detach . | . . . Swap 14 | . 8 6 Drop 15 | . 9 6 Fire 42 | . 29 13 Melee 12 | . . 12 Ram . | . . . Kick . | . . . Crush . | . . . Escape Stasis . | . . . Rewire . | . . . Trap . | . . . Miscellaneous . | . . . Route ------- -11/Scrapyard -10/Materials -9/Materials (discovered 1 exit: [*Mat]) History --------- Turn | Location | Event 2 | -11/Scrapyard | Met Revision 17 29 | -11/Scrapyard | Discovered new exit (range 16) 70 | -11/Scrapyard | Entered Materials 318 | -10/Materials | Build established: Mutant 409 | -10/Materials | Discovered new exit (range 5) 484 | -10/Materials | Entered another Materials area 484 | -9/Materials | Evolved 2 slots: Propulsion x1, Weapon x1 735 | -9/Materials | Discovered new exit (range 16) 986 | -9/Materials | Self-destructed Last Messages --------------- Transporter. 00815_ A-02 Transporter suffers critical hit (Smash). 00815_ A-02 Transporter destroyed. 00821_ Dropped Spread Laser. 00824_ Acquired Beam Cannon. 00827_ Acquired 20 matter. 00830_ R-06 Scavenger collects Beam Cannon. 00841_ Connecting with Terminal... 00869_ K-01 Serf collects debris. 00976_ Destroyed Flight Unit. 00976_ S-10 Pest system corrupted by crushing effect. 00976_ S-10 Pest knocked back. 00980_ Destroyed Lgt. Ion Engine. 00980_ S-10 Pest system corrupted by crushing effect. 00982_ Seismic Detector destroyed. 00982_ Aluminum Leg destroyed. 00985_ S-10 Pest destroyed. Map ----- +----------------------------------------------------+ | ???#### ######+######+####### ???????????# """ | | ???# ???????????# | | ???# ???????????# ![ | | ???# ???????????# ![ | | ???## ###+####### ###?##???????????# ! | | ????# #?????????????#????????????????# | | ????#! !#??????????????????????????????#####+## | | ????##!!!!##??????????????????????????????????# #? | | ?????######???????????????????????????????????# #? | | ??????????????????????????????????????????????# ## | | ?????????????????????? ?????????????????????# # | | ?????????????????????# ?????????????????????# # | | ?????????????????????# ?????????????????????# # | | ?????????????????????# ????????????????###### + | | ?????????????????????# ????????????????# # # | | ?????????????????????# ????????????????# # # | | ?????????????????????# ?????????######## # ## | | ?????????????????????# #????????# """ # # #? | | ?????????????????????# #????????# """ # # ## | | ?????????????????????# #????????# """ # + | | ?????????????????????# #????????# # #### | | ?????????????????????+ #????????# # #??? | | ?????????????????????# #?????????? # #??? | | ?????????????????????# s#############+########### | | ?????????????????????# ss r | | ?????????????????????# @ | | ?????????????????????# s | | ?????????????????????#s%g######################## | | ???????????????? s s #??????????????????????# | | ?????????????# #???????????############ | | ?????????????# #???????????# ## | | ?????????????# a #???????????# =# | | ???????????? #???????????# %#[! | | ??????????? #???????????# = +%* | | ??????????? ####### #???????????# *#= | | ???????????? ???????+ +???????????# # | | ???????????? ????????# ????????????# ## | | ?????????????????????# ????????????# ## | | ?????????????????????# ????????????############ | | ?????????????????????# ???????????????????????# | | ?????????????????????# ???????????????????????# | | ?????????????????????# ???????????????????????# | | ?????????????????????? ???????????????????????# | | ????????????????????????????????????????????????# | | ????????????????????????????????????????????????# | | ????????????????????????????????????????????????# | | ????????????????????????????????????????????????+ | | ????????????????????????????????????????????????# | | ????????????????????????????????????????????????? | | ????????????????????????????????????????????????? | +----------------------------------------------------+ Best States ------------- Heat Dissipation 42 Energy Generation 14 Energy Capacity 250 Matter Stores 300 Matter Capacity 300 Sight Range 16 Terrain Scan Density 10 Evasion (%) 55 Recoil Reduction 2 Item Schematics ----------------- None Robot Schematics ------------------ None Fabricated ------------ Nothing Alien Tech Used ----------------- None Achievements -------------- None Challenges ------------ None Game ------ Seed DecoderRemoteDrive Manual? 0 Play Time 00:07:40 Cumulative 55.0 hours Start 2024.04.28 @ 14:43:59 End 2024.04.28 @ 14:51:28 Sessions 1 Manual Loads 0 Difficulty Rogue Special Mode None Game No. 89 Rogue 73 Adventurer 16 Explorer 0 Win Type - Total 0 Types 0/0/0/0/0/0/0/0/0 Lore% 17 Gallery% 36 Achievement% 27 Wizard Run 0 Options --------- Layout 1 ASCII 0 Keyboard 0 Movement Mouse Keybinds 0 Fullscreen 2 Font 24/Smallcaps Map View 50x35 Zoom Use 0% Tactical HUD 1 Map Filters NONE Filters NONE Steam 1 RUN: ea485511-0dc0-4001-b117-4cca9dfba19d